fUST/lending_fUST_20240723
["ID","MTS","AMOUNT","RATE_DAILY","PERIOD"]
[332984717,1721727049403,-500.0,0.00013698,2]
[332984718,1721727049413,-151.0,0.00013698,2]
[332984719,1721727049424,-236.7272,0.00013698,2]
[332984720,1721727049433,-348.401737,0.00013698,2]
[332984721,1721727049443,-500.0,0.00013698,2]
[332984722,1721727049453,-348.401737,0.00013698,2]
[332984723,1721727049464,-348.401737,0.00013698,2]
[332984724,1721727049612,-348.401737,0.00013698,2]
[332984725,1721727049626,-348.401737,0.00013698,2]
[332984726,1721727049636,-348.401737,0.00013698,2]
[332984727,1721727049647,-151.0,0.00013698,2]
[332984728,1721727049657,-151.0,0.00013698,2]
[332984729,1721727049667,-151.0,0.00013698,2]
[332984730,1721727049676,-500.0,0.00013698,2]
[332984731,1721727049686,-502.57095392,0.00013698,2]
[332984732,1721727049697,-500.0,0.00013698,2]
[332984733,1721727049706,-500.0,0.00013698,2]
[332984734,1721727049716,-500.0,0.00013698,2]
[332984735,1721727049726,-500.0,0.00013698,2]
[332984736,1721727049736,-500.0,0.00013698,2]
[332984737,1721727049747,-500.0,0.00013698,2]
[332984738,1721727049759,-151.0,0.00013698,2]
[332984739,1721727049769,-213.798384,0.00013698,2]
[332984740,1721727049779,-190.993498,0.00013698,2]
[332984741,1721727049789,-190.993498,0.00013698,2]
[332984742,1721727049799,-190.993498,0.00013698,2]
[332984743,1721727049808,-151.0,0.00013698,2]
[332984744,1721727049819,-151.0,0.00013698,2]
[332984745,1721727049830,-151.0,0.00013698,2]
[332984746,1721727049840,-190.993498,0.00013698,2]
[332984747,1721727049851,-190.993498,0.00013698,2]
[332984748,1721727049862,-356.982502,0.00013698,2]
[332984749,1721727049876,-190.993498,0.00013698,2]
[332984750,1721727049886,-356.982502,0.00013698,2]
[332984751,1721727049897,-151.0,0.00013698,2]
[332984752,1721727049909,-151.0,0.00013698,2]
[332984753,1721727049919,-189.025799,0.00013698,2]
[332984754,1721727049930,-356.982502,0.00013698,2]
[332984755,1721727049940,-356.982502,0.00013698,2]
[332984756,1721727049949,-151.0,0.00013698,2]
[332984757,1721727049959,-254.934044,0.00013698,2]
[332984758,1721727049969,-175.842986,0.00013698,2]
[332984759,1721727049980,-175.842986,0.00013698,2]
[332984760,1721727049990,-175.842986,0.00013698,2]
[332984761,1721727050001,-175.842986,0.00013698,2]
[332984762,1721727050012,-151.0,0.00013698,2]
[332984763,1721727050021,-151.0,0.00013698,2]
[332984764,1721727050032,-151.0,0.00013698,2]
[332984765,1721727050041,-151.0,0.00013698,2]
[332984766,1721727050051,-151.0,0.00013698,2]
[332984767,1721727050060,-151.0,0.00013698,2]
[332984768,1721727050070,-151.0,0.00013698,2]
[332984769,1721727050080,-151.0,0.00013698,2]
[332984770,1721727050090,-151.0,0.00013698,2]
[332984771,1721727050100,-151.0,0.00013698,2]
[332984772,1721727050110,-500.0,0.00013698,2]
[332984773,1721727050124,-500.0,0.00013698,2]
[332984774,1721727050135,-500.0,0.00013698,2]
[332984775,1721727050144,-500.0,0.00013698,2]
[332984776,1721727050153,-535.05918196,0.00013698,2]
[332984777,1721727050162,-500.0,0.00013698,2]
[332984778,1721727050171,-355.17817086,0.00013698,2]
[332984779,1721727050180,-500.0,0.00013698,2]
[332984780,1721727050190,-500.0,0.00013698,2]
[332984781,1721727050199,-500.0,0.00013698,2]
[332984782,1721727050208,-500.0,0.00013698,2]
[332984783,1721727050218,-258.48211526,0.00013698,2]
[332984784,1721727050227,-234.49365211,0.00013698,2]
[332984785,1721727050236,-500.0,0.00013698,2]
[332984786,1721727050245,-5464.4026296,0.00013699,2]
[332984787,1721727050255,-1129.049648,0.00013699,2]
[332984788,1721727050264,-733.139511,0.00013699,2]
[332984789,1721727050274,-733.139511,0.00013699,2]
[332984790,1721727050285,-733.139511,0.00013699,2]
[332984791,1721727050294,-733.139511,0.00013699,2]
[332984792,1721727050303,-733.139511,0.00013699,2]
[332984793,1721727050313,-733.139511,0.00013699,2]
[332984794,1721727050323,-3000.0,0.00013699,2]
[332984795,1721727050332,-151.0,0.00013699,2]
[332984796,1721727050342,-151.0,0.00013699,2]
[332984797,1721727050351,-151.0,0.00013699,2]
[332984798,1721727050361,-356.982502,0.00013699,2]
[332984799,1721727050379,-356.982502,0.00013699,2]
[332984800,1721727050388,-175.842986,0.00013699,2]
[332984801,1721727050397,-175.842986,0.00013699,2]
[332984802,1721727050409,-151.0,0.00013699,2]
[332984803,1721727050419,-151.0,0.00013699,2]
[332984804,1721727050429,-151.0,0.00013699,2]
[332984805,1721727050439,-151.0,0.00013699,2]
[332984806,1721727050450,-151.0,0.00013699,2]
[332984807,1721727050460,-151.0,0.00013699,2]
[332984808,1721727050469,-188.0,0.000137,2]
[332984809,1721727050478,-151.0,0.000137,2]
[332984810,1721727050488,-926.071,0.00013749,2]
[332984811,1721727050498,-505.0,0.00013749,2]
[332984812,1721727050507,-216.859699,0.00013749,2]
[332984813,1721727050517,-348.401737,0.00013749,2]
[332984814,1721727050526,-348.401737,0.00013749,2]
[332984815,1721727050537,-500.0,0.00013843,2]
[332984816,1721727050548,-583.43742648,0.0001385,2]
[332984817,1721727050559,-1236.98515826,0.0001385,2]
[332984818,1721727050570,-500.0,0.0001386,2]
[332984819,1721727050579,-248.971905,0.0001386,2]
[332984820,1721727050589,-733.139511,0.0001386,2]
[332984821,1721727050599,-733.139511,0.0001386,2]
[332984822,1721727050610,-190.993498,0.0001386,2]
[332984823,1721727050624,-151.0,0.0001386,2]
[332984824,1721727050636,-190.993498,0.0001386,2]
[332984825,1721727050646,-151.0,0.00013861,2]
[332984826,1721727050656,-151.0,0.00013861,2]
[332984827,1721727050665,-453.52627597,0.0001387,2]
[332984828,1721727050675,-500.0,0.0001387,2]
[332984829,1721727050685,-500.0,0.0001387,2]
[332984830,1721727050694,-500.0,0.0001387,2]
[332984831,1721727050704,-533.164769,0.0001387,2]
[332984832,1721727050714,-533.164769,0.0001387,2]
[332984833,1721727050725,-540.44677775,0.00013871,2]
[332984834,1721727050736,-500.0,0.00013871,2]
[332984835,1721727050745,-500.0,0.00013871,2]
[332984836,1721727050754,-500.0,0.00013871,2]
[332984837,1721727050765,-500.0,0.00013871,2]
[332984838,1721727050775,-500.0,0.00013871,2]
[332984839,1721727050785,-500.0,0.00013871,2]
[332984840,1721727050795,-500.0,0.00013871,2]
[332984841,1721727050804,-500.0,0.00013871,2]
[332984842,1721727050814,-500.0,0.00013871,2]
[332984843,1721727050824,-500.0,0.00013871,2]
[332984844,1721727050835,-500.0,0.00013871,2]
[332984845,1721727050845,-500.0,0.00013871,2]
[332984846,1721727050855,-500.0,0.00013871,2]
[332984847,1721727050864,-500.0,0.00013871,2]
[332984848,1721727050878,-645.13695881,0.00013871,2]
[332984849,1721727050887,-485.38681599,0.00013871,2]
[332984850,1721727050896,-500.0,0.00013871,2]
[332984851,1721727050905,-500.0,0.00013871,2]
[332984852,1721727050914,-500.0,0.00013871,2]
[332984853,1721727050924,-506.44,0.00013871,2]
[332984854,1721727050934,-501.52841796,0.00013871,2]
[332984855,1721727050945,-539.94,0.00013871,2]
[332984856,1721727050957,-501.99687224,0.00013871,2]
[332984857,1721727050967,-647.96277099,0.00013871,2]
[332984858,1721727050976,-603.05619708,0.00013871,2]
[332984859,1721727050987,-511.90461224,0.00013871,2]
[332984860,1721727050996,-500.0,0.00013871,2]
[332984861,1721727051006,-151.0,0.00013871,2]
[332984862,1721727051018,-151.0,0.00013871,2]
[332984863,1721727051030,-151.0,0.00013871,2]
[332984864,1721727051041,-151.0,0.00013871,2]
[332984865,1721727051052,-356.982502,0.00013871,2]
[332984866,1721727051062,-356.982502,0.00013871,2]
[332984867,1721727051074,-175.842986,0.00013871,2]
[332984868,1721727051088,-175.842986,0.00013871,2]
[332984869,1721727051104,-151.0,0.00013871,2]
[332984870,1721727051114,-151.0,0.00013871,2]
[332984871,1721727051126,-151.0,0.00013871,2]
[332984872,1721727051136,-151.0,0.00013871,2]
[332984873,1721727051145,-10193.85399825,0.000139,2]
[332984874,1721727051154,-151.0,0.00013939,2]
[332984875,1721727051164,-151.0,0.00013939,2]
[332984876,1721727051173,-7421.91094956,0.00013939,2]
[332984877,1721727051182,-1236.98515826,0.00013939,2]
[332984878,1721727051192,-1236.98515826,0.0001394,2]
[332984879,1721727051201,-500.0,0.0001394,2]
[332984880,1721727051210,-500.0,0.00013949,2]
[332984881,1721727051219,-500.0,0.00013949,2]
[332984882,1721727051229,-500.0,0.00013949,2]
[332984883,1721727051238,-500.0,0.00013949,2]
[332984884,1721727051248,-500.0,0.00013949,2]
[332984885,1721727051257,-561.36061409,0.00013949,2]
[332984886,1721727051267,-151.0,0.00013949,2]
[332984887,1721727051276,-733.139511,0.00013949,2]
[332984888,1721727051286,-733.139511,0.00013949,2]
[332984889,1721727051295,-733.139511,0.00013949,2]
[332984890,1721727051304,-733.139511,0.00013949,2]
[332984891,1721727051314,-190.993498,0.00013949,2]
[332984892,1721727051323,-151.0,0.00013949,2]
[332984893,1721727051333,-190.993498,0.00013949,2]
[332984894,1721727051343,-356.982502,0.00013949,2]
[332984895,1721727051354,-356.982502,0.00013949,2]
[332984896,1721727051365,-175.842986,0.00013949,2]
[332984897,1721727051380,-175.842986,0.00013949,2]
[332984898,1721727051390,-151.0,0.00013949,2]
[332984899,1721727051399,-151.0,0.00013949,2]
[332984900,1721727051408,-152.808108,0.00013949,2]
[332984901,1721727051419,-151.0,0.00013949,2]
[332984902,1721727051429,-151.0,0.00013949,2]
[332984903,1721727051439,-151.0,0.00013949,2]
[332984904,1721727051449,-1236.98515826,0.0001395,2]
[332984905,1721727051459,-733.139511,0.0001395,2]
[332984906,1721727051469,-733.139511,0.0001395,2]
[332984907,1721727051479,-190.993498,0.0001395,2]
[332984908,1721727051488,-151.0,0.0001395,2]
[332984909,1721727051498,-190.993498,0.0001395,2]
[332984910,1721727051508,-356.982502,0.0001395,2]
[332984911,1721727051517,-356.982502,0.0001395,2]
[332984912,1721727051527,-175.842986,0.0001395,2]
[332984913,1721727051538,-175.842986,0.0001395,2]
[332984914,1721727051549,-151.0,0.0001395,2]
[332984915,1721727051561,-151.0,0.0001395,2]
[332984916,1721727051570,-187.319809,0.0001395,2]
[332984917,1721727051580,-464.72610654,0.00013951,2]
[332984918,1721727051591,-424.3272714,0.00013951,2]
[332984919,1721727051602,-500.0,0.00013951,2]
[332984920,1721727051615,-201.68395204,0.00013959,2]
[332984921,1721727051635,-151.0,0.00013959,2]
[332984922,1721727051647,-240.0,0.00013959,2]
[332984923,1721727051660,-533.164769,0.00013959,2]
[332984924,1721727051669,-533.164769,0.00013959,2]
[332984925,1721727051679,-533.164769,0.00013959,2]
[332984926,1721727051688,-533.164769,0.00013959,2]
[332984927,1721727051697,-151.0,0.00013959,2]
[332984928,1721727051706,-348.401737,0.00013959,2]
[332984929,1721727051717,-348.401737,0.00013959,2]
[332984930,1721727051726,-348.401737,0.00013959,2]
[332984931,1721727051740,-348.401737,0.00013959,2]
[332984932,1721727051762,-266.727514,0.0001396,2]
[332984933,1721727051771,-151.0,0.0001396,2]
[332984934,1721727051781,-151.0,0.0001396,2]
[332984935,1721727051790,-533.164769,0.0001396,2]
[332984936,1721727051800,-533.164769,0.0001396,2]
[332984937,1721727051809,-151.0,0.0001396,2]
[332984938,1721727051819,-348.401737,0.0001396,2]
[332984939,1721727051828,-348.401737,0.0001396,2]
[332984940,1721727051837,-2473.97031652,0.00013961,2]
[332984941,1721727051846,-151.0,0.00013961,2]
[332984942,1721727051855,-151.0,0.00013961,2]
[332984943,1721727051865,-151.0,0.00013962,2]
[332984944,1721727051876,-151.0,0.00013962,2]
[332984945,1721727051885,-1236.98515826,0.00013962,2]
[332984946,1721727051894,-500.0,0.00013969,2]
[332984947,1721727051903,-175.842986,0.00013969,2]
[332984948,1721727051913,-175.842986,0.00013969,2]
[332984949,1721727051923,-151.0,0.00013969,2]
[332984950,1721727051932,-151.0,0.00013969,2]
[332984951,1721727051942,-810.15,0.0001397,2]
[332984952,1721727051951,-810.15,0.0001397,2]
[332984953,1721727051962,-810.15,0.0001397,2]
[332984954,1721727051971,-810.15,0.0001397,2]
[332984955,1721727051980,-810.15,0.0001397,2]
[332984956,1721727051990,-1807.51,0.0001397,2]
[332984957,1721727052001,-592.22,0.0001397,2]
[332984958,1721727052011,-592.22,0.0001397,2]
[332984959,1721727052026,-298.57479115,0.0001397,2]
[332984960,1721727052047,-220.496676,0.0001397,2]
[332984961,1721727052056,-190.993498,0.0001397,2]
[332984962,1721727052066,-151.0,0.0001397,2]
[332984963,1721727052075,-190.993498,0.0001397,2]
[332984964,1721727052084,-151.0,0.0001397,2]
[332984965,1721727052094,-151.0,0.0001397,2]
[332984966,1721727052104,-719.27,0.00013971,2]
[332984967,1721727052113,-719.27,0.00013971,2]
[332984968,1721727052125,-719.27,0.00013971,2]
[332984969,1721727052136,-719.27,0.00013971,2]
[332984970,1721727052147,-719.31,0.00013971,2]
[332984971,1721727052158,-785.49,0.00013971,2]
[332984972,1721727052167,-785.49,0.00013971,2]
[332984973,1721727052178,-785.49,0.00013971,2]
[332984974,1721727052189,-785.49,0.00013971,2]
[332984975,1721727052199,-785.53,0.00013971,2]
[332984976,1721727052209,-2501.31,0.00013971,2]
[332984977,1721727052220,-2501.31,0.00013971,2]
[332984978,1721727052230,-2501.31,0.00013971,2]
[332984979,1721727052240,-2501.31,0.00013971,2]
[332984980,1721727052250,-2501.31,0.00013971,2]
[332984981,1721727052260,-2501.31,0.00013971,2]
[332984982,1721727052270,-2501.31,0.00013971,2]
[332984983,1721727052279,-2501.31,0.00013971,2]
[332984984,1721727052289,-2501.31,0.00013971,2]
[332984985,1721727052298,-2501.31,0.00013971,2]
[332984986,1721727052307,-2501.3633156,0.00013971,2]
[332984987,1721727052317,-1807.51,0.00013971,2]
[332984988,1721727052327,-1807.51,0.00013971,2]
[332984989,1721727052336,-1807.51,0.00013971,2]
[332984990,1721727052346,-1807.51,0.00013971,2]
[332984991,1721727052356,-1807.51,0.00013971,2]
[332984992,1721727052369,-1807.67601899,0.00013971,2]
[332984993,1721727052379,-592.22,0.00013971,2]
[332984994,1721727052388,-592.22,0.00013971,2]
[332984995,1721727052398,-592.22,0.00013971,2]
[332984996,1721727052410,-592.22,0.00013971,2]
[332984997,1721727052420,-592.22,0.00013971,2]
[332984998,1721727052431,-592.22,0.00013971,2]
[332984999,1721727052442,-592.22,0.00013971,2]
[332985000,1721727052452,-592.22,0.00013971,2]
[332985001,1721727052461,-592.22,0.00013971,2]
[332985002,1721727052470,-592.22,0.00013971,2]
[332985003,1721727052480,-592.22,0.00013971,2]
[332985004,1721727052489,-592.22,0.00013971,2]
[332985005,1721727052499,-592.22,0.00013971,2]
[332985006,1721727052508,-592.22,0.00013971,2]
[332985007,1721727052518,-592.23954869,0.00013971,2]
[332985008,1721727052527,-151.0,0.00013971,2]
[332985009,1721727052538,-151.0,0.00013971,2]
[332985010,1721727052550,-151.0,0.00013971,2]
[332985011,1721727052560,-533.164769,0.00013971,2]
[332985012,1721727052569,-533.164769,0.00013971,2]
[332985013,1721727052578,-151.0,0.00013971,2]
[332985014,1721727052587,-151.0,0.00013971,2]
[332985015,1721727052597,-348.401737,0.00013971,2]
[332985016,1721727052606,-348.401737,0.00013971,2]
[332985017,1721727052617,-733.139511,0.00013971,2]
[332985018,1721727052628,-733.139511,0.00013971,2]
[332985019,1721727052637,-190.993498,0.00013971,2]
[332985020,1721727052647,-151.0,0.00013971,2]
[332985021,1721727052656,-356.982502,0.00013971,2]
[332985022,1721727052665,-190.993498,0.00013971,2]
[332985023,1721727052675,-356.982502,0.00013971,2]
[332985024,1721727052685,-175.842986,0.00013971,2]
[332985025,1721727052695,-175.842986,0.00013971,2]
[332985026,1721727052705,-151.0,0.00013971,2]
[332985027,1721727052716,-151.0,0.00013971,2]
[332985028,1721727052728,-151.0,0.00013971,2]
[332985029,1721727052740,-35412.10110188,0.00013972,5]
[332985030,1721727052750,-2703.97384271,0.00013972,5]
[332985031,1721727052774,-115010.069072,0.00013972,5]
[332985042,1721728028146,-202.088799,9.232e-05,2]
[332985043,1721728028171,-599.6600312,9.505e-05,2]
[332985044,1721728028194,-599.6600312,9.601e-05,2]
[332985045,1721728028219,-202.088799,9.713e-05,2]
[332985046,1721728028243,-300.0,9.882e-05,2]
[332985047,1721728028267,-8540.9366405,9.883e-05,2]
[332985048,1721728036140,-2209.15043872,9.784e-05,2]
[332985050,1721728146107,-300.0,9.783e-05,2]
[332985051,1721728146132,-271.0,9.783e-05,2]
[332985052,1721728146157,-5066.13354527,9.784e-05,2]
[332985053,1721728146178,-249.63068403,9.784e-05,2]
[332985054,1721728146206,-3522.73969084,9.784e-05,2]
[332985055,1721728146227,-1622.00586813,9.784e-05,2]
[332985056,1721728146249,-2106.73594999,9.784e-05,2]
[332985057,1721728146270,-154.73384331,9.784e-05,2]
[332985058,1721728146292,-3073.28468361,9.784e-05,2]
[332985059,1721728146313,-524.931221,9.857e-05,2]
[332985060,1721728146335,-16359.0633595,9.883e-05,2]
[332985061,1721728146356,-248.75711548,9.999e-05,2]
[332985062,1721728146377,-194.17757327,9.999e-05,2]
[332985063,1721728146397,-154.79103211,9.999e-05,2]
[332985064,1721728146417,-392.37099697,9.999e-05,2]
[332985065,1721728146438,-218.81246084,9.999e-05,2]
[332985066,1721728146459,-155.88412873,9.999e-05,2]
[332985067,1721728146479,-778.58266604,9.999e-05,2]
[332985068,1721728146500,-154.72922386,9.999e-05,2]
[332985069,1721728146524,-196.26871937,9.999e-05,2]
[332985070,1721728146547,-154.8016033,9.999e-05,2]
[332985071,1721728146570,-283.37630814,9.999e-05,2]
[332985072,1721728146593,-109511.73774963,0.0001,2]
[332985073,1721728150116,-94111.35200287,0.0001,2]
[332985158,1721728232274,-250.0,9.752e-05,2]
[332985160,1721728232286,-2964.92328943,9.784e-05,2]
[332985162,1721728232295,-4679.03335492,9.784e-05,2]
[332985303,1721728238137,-11787.95437452,9.784e-05,2]
[332985305,1721728238147,-154.71377951,9.899e-05,2]
[332985307,1721728238158,-300.0,9.998e-05,2]
[332985309,1721728238167,-154.71377951,9.999e-05,2]
[332985311,1721728238176,-413.48920953,9.999e-05,2]
[332985313,1721728238186,-617.93770975,9.999e-05,2]
[332985315,1721728238196,-154.79103211,9.999e-05,2]
[332985317,1721728238205,-154.70605849,9.999e-05,2]
[332985319,1721728238214,-154.82676516,9.999e-05,2]
[332985321,1721728238223,-404.34085405,9.999e-05,2]
[332985323,1721728238233,-208.54118651,9.999e-05,2]
[332985325,1721728238242,-154.79103211,9.999e-05,2]
[332985327,1721728238252,-96376.9102475,0.0001,2]
[332985329,1721728238262,-218.13704339,0.0001,2]
[332985331,1721728238272,-2109.75911648,0.0001,2]
[332985333,1721728238282,-19665.16509458,0.0001077,2]
[332985335,1721728238293,-420.0,0.00010998,2]
[332985338,1721728238305,-19665.16509454,0.00011477,2]
[332985340,1721728238315,-196.26871937,0.00011859,2]
[332985342,1721728238326,-207.27243247,0.00011859,2]
[332985344,1721728238336,-290.33466492,0.00011859,2]
[332985346,1721728238345,-360455.273671,0.000119,2]
[332985348,1721728238354,-956.33453448,0.00012084,2]
[332985350,1721728238364,-161.95564781,0.00012121,2]
[332985352,1721728238373,-19665.16509454,0.00012184,2]
[332985354,1721728238383,-19665.16509454,0.00012891,2]
[332985356,1721728238393,-736.75996205,0.000129,2]
[332985358,1721728238402,-1679.63269176,0.000129,2]
[332985360,1721728238411,-1679.63269172,0.000129,2]
[332985362,1721728238421,-1679.63269172,0.00012939,2]
[332985363,1721728238430,-1014.11750425,0.00013291,2]
[332985365,1721728238439,-200.0,0.00013425,2]
[332985367,1721728238450,-151.00173499,0.00013486,2]
[332985370,1721728238461,-956.33453439,0.00013508,2]
[332985372,1721728238472,-19665.16509454,0.00013598,2]
[332985373,1721728238481,-367.39222983,0.00013604,2]
[332985375,1721728238491,-5305.4820148,0.00013651,2]
[332985376,1721728238501,-500.0,0.00013698,2]
[332985377,1721728238512,-1149.62,0.00013698,2]
[332985378,1721728238523,-4140.22,0.00013698,2]
[332985380,1721728238534,-703.51,0.00013698,2]
[332985382,1721728238544,-500.0,0.00013698,2]
[332985384,1721728238554,-500.0,0.00013698,2]
[332985386,1721728238564,-632.8,0.00013698,2]
[332985389,1721728238575,-502.05,0.00013698,2]
[332985391,1721728238586,-500.0,0.00013698,2]
[332985393,1721728238597,-500.0,0.00013698,2]
[332985395,1721728238607,-500.0,0.00013698,2]
[332985397,1721728238618,-500.0,0.00013698,2]
[332985399,1721728238628,-500.0,0.00013698,2]
[332985401,1721728238639,-500.0,0.00013698,2]
[332985403,1721728238648,-500.0,0.00013698,2]
[332985405,1721728238657,-500.0,0.00013698,2]
[332985407,1721728238669,-500.0,0.00013698,2]
[332985409,1721728238679,-500.0,0.00013698,2]
[332985411,1721728238688,-500.0,0.00013698,2]
[332985413,1721728238698,-500.0,0.00013698,2]
[332985415,1721728238707,-500.0,0.00013698,2]
[332985417,1721728238716,-500.0,0.00013698,2]
[332985419,1721728238726,-500.0,0.00013698,2]
[332985421,1721728238736,-361.05719119,0.00013698,2]
[332985423,1721728238749,-500.0,0.00013698,2]
[332985425,1721728238759,-500.0,0.00013698,2]
[332985427,1721728238768,-3401.85,0.00013698,2]
[332985429,1721728238778,-1489.75,0.00013698,2]
[332985431,1721728238788,-500.0,0.00013698,2]
[332985433,1721728238799,-2943.74,0.00013698,2]
[332985435,1721728238810,-500.0,0.00013698,2]
[332985437,1721728238822,-500.0,0.00013698,2]
[332985438,1721728238831,-500.0,0.00013698,2]
[332985439,1721728238842,-537.35885071,0.00013698,2]
[332985440,1721728238852,-2446.94,0.00013698,2]
[332985441,1721728238863,-500.0,0.00013698,2]
[332985442,1721728238873,-500.0,0.00013698,2]
[332985443,1721728238882,-500.0,0.00013698,2]
[332985444,1721728238891,-793.26,0.00013698,2]
[332985445,1721728238900,-500.0,0.00013698,2]
[332985446,1721728238910,-500.0,0.00013698,2]
[332985447,1721728238919,-500.0,0.00013698,2]
[332985448,1721728238929,-500.0,0.00013698,2]
[332985449,1721728238938,-571.72,0.00013698,2]
[332985450,1721728238947,-500.0,0.00013698,2]
[332985451,1721728238957,-500.0,0.00013698,2]
[332985452,1721728238966,-500.0,0.00013698,2]
[332985453,1721728238975,-500.0,0.00013698,2]
[332985454,1721728238985,-2216.37,0.00013698,2]
[332985455,1721728238994,-500.0,0.00013698,2]
[332985456,1721728239004,-500.0,0.00013698,2]
[332985457,1721728239015,-621.55,0.00013698,2]
[332985458,1721728239024,-501.01,0.00013698,2]
[332985459,1721728239036,-500.0,0.00013698,2]
[332985461,1721728239046,-500.0,0.00013698,2]
[332985463,1721728239056,-500.0,0.00013698,2]
[332985465,1721728239065,-500.0,0.00013698,2]
[332985467,1721728239075,-500.0,0.00013698,2]
[332985469,1721728239084,-634.30962426,0.00013698,2]
[332985471,1721728239093,-500.0,0.00013698,2]
[332985473,1721728239102,-370.66818343,0.00013698,2]
[332985475,1721728239112,-626.92,0.00013698,2]
[332985477,1721728239122,-500.0,0.00013698,2]
[332985479,1721728239131,-500.0,0.00013698,2]
[332985481,1721728239141,-500.0,0.00013698,2]
[332985483,1721728239151,-500.0,0.00013698,2]
[332985485,1721728239161,-500.0,0.00013698,2]
[332985487,1721728239170,-500.0,0.00013698,2]
[332985489,1721728239181,-524.8,0.00013698,2]
[332985491,1721728239191,-500.0,0.00013698,2]
[332985493,1721728239203,-500.0,0.00013698,2]
[332985496,1721728239213,-500.0,0.00013698,2]
[332985498,1721728239222,-500.0,0.00013698,2]
[332985500,1721728239232,-500.0,0.00013698,2]
[332985502,1721728239241,-500.0,0.00013698,2]
[332985504,1721728239250,-626.0,0.00013698,2]
[332985506,1721728239260,-500.0,0.00013698,2]
[332985508,1721728239269,-500.0,0.00013698,2]
[332985510,1721728239280,-500.0,0.00013698,2]
[332985512,1721728239290,-500.0,0.00013698,2]
[332985514,1721728239300,-500.0,0.00013698,2]
[332985516,1721728239310,-500.0,0.00013698,2]
[332985518,1721728239321,-500.0,0.00013698,2]
[332985521,1721728239332,-500.0,0.00013698,2]
[332985523,1721728239343,-500.0,0.00013698,2]
[332985525,1721728239353,-500.0,0.00013698,2]
[332985527,1721728239362,-500.0,0.00013698,2]
[332985529,1721728239372,-500.0,0.00013698,2]
[332985531,1721728239384,-500.0,0.00013698,2]
[332985533,1721728239395,-586.52,0.00013698,2]
[332985536,1721728239408,-500.0,0.00013698,2]
[332985538,1721728239419,-500.0,0.00013698,2]
[332985540,1721728239431,-500.0,0.00013698,2]
[332985542,1721728239442,-500.0,0.00013698,2]
[332985545,1721728239453,-500.0,0.00013698,2]
[332985547,1721728239463,-500.0,0.00013698,2]
[332985549,1721728239473,-634.68,0.00013698,2]
[332985551,1721728239484,-500.0,0.00013698,2]
[332985553,1721728239494,-500.0,0.00013698,2]
[332985555,1721728239505,-500.0,0.00013698,2]
[332985557,1721728239515,-500.0,0.00013698,2]
[332985559,1721728239525,-500.0,0.00013698,2]
[332985561,1721728239537,-500.0,0.00013698,2]
[332985563,1721728239547,-500.0,0.00013698,2]
[332985565,1721728239557,-500.0,0.00013698,2]
[332985567,1721728239566,-500.0,0.00013698,2]
[332985569,1721728239576,-500.0,0.00013698,2]
[332985571,1721728239586,-500.0,0.00013698,2]
[332985574,1721728239596,-500.0,0.00013698,2]
[332985576,1721728239606,-500.0,0.00013698,2]
[332985578,1721728239616,-500.0,0.00013698,2]
[332985580,1721728239627,-500.0,0.00013698,2]
[332985582,1721728239639,-500.0,0.00013698,2]
[332985585,1721728239652,-500.0,0.00013698,2]